bitfinex-derivatives/quotes_BTCF0:USTF0_20251130
["timestamp","ask_amount","ask_price","bid_price","bid_amount"]
[1764490998197,0.00010963,91153.0,91152.0,0.13614645]
[1764491002207,0.00010963,91153.0,91152.0,0.0574]
[1764491003108,0.00010963,91153.0,91152.0,0.4074]
[1764491005607,0.00813,91184.0,91165.0,0.0438]
[1764491005809,0.00813,91184.0,91165.0,0.0547674]
[1764491006006,0.02305423,91166.0,91165.0,0.0547674]
[1764491006403,0.00027423,91166.0,91165.0,0.0547674]
[1764491006613,0.00427423,91166.0,91165.0,0.0547674]
[1764491007710,0.00527423,91166.0,91165.0,0.0547674]
[1764491008210,0.00527423,91166.0,91165.0,0.13339149]
[1764491010223,0.00527423,91166.0,91165.0,0.0547674]
[1764491011317,0.02805423,91166.0,91165.0,0.0547674]
[1764491013316,0.00527423,91166.0,91165.0,0.0547674]
[1764491014322,0.00813,91196.0,91165.0,0.0547674]
[1764491014323,0.04534,91197.0,91196.0,0.0438]
[1764491014517,0.04561411,91206.0,91205.0,0.0438]
[1764491014712,0.04561411,91206.0,91205.0,0.02252]
[1764491014713,0.43561411,91206.0,91205.0,0.02252]
[1764491014912,0.43561411,91206.0,91205.0,0.0438]
[1764491015221,0.43561411,91206.0,91205.0,0.06862556]
[1764491015617,0.43561411,91206.0,91205.0,0.05567556]
[1764491015815,0.44361411,91206.0,91205.0,0.05567556]
[1764491016011,0.44361411,91206.0,91205.0,0.01187556]
[1764491016212,0.44361411,91206.0,91196.0,0.01295]
[1764491016213,0.04534,91197.0,91196.0,0.05675]
[1764491016416,0.02278,91197.0,91196.0,0.05675]
[1764491016620,0.04534,91201.0,91200.0,0.0438]
[1764491016822,0.45534,91201.0,91200.0,0.0438]
[1764491018625,0.45634,91201.0,91200.0,0.0438]
[1764491018926,0.45934,91201.0,91200.0,0.05675]
[1764491022132,0.25934,91201.0,91200.0,0.05675]
[1764491022331,0.04934,91201.0,91200.0,0.05675]
[1764491022835,0.004,91201.0,91200.0,0.05675]
[1764491023129,0.2023,91245.0,91215.0,0.01383]
[1764491023435,0.13906698,91260.0,91215.0,0.01383]
[1764491023436,0.6009999,91240.0,91239.0,0.04583]
[1764491023621,0.02228399,91246.0,91245.0,0.05966]
[1764491023817,0.04526399,91246.0,91245.0,0.04583]
[1764491024323,0.04526399,91246.0,91236.0,0.00016444]
[1764491024324,0.04499,91237.0,91236.0,0.00016444]
[1764491024626,0.23499,91237.0,91236.0,0.02308444]
[1764491024938,0.04499,91237.0,91236.0,0.02308444]
[1764491025131,0.04499,91237.0,91236.0,0.00016444]
[1764491026034,0.04499,91237.0,91236.0,0.00116444]
[1764491026418,0.04499,91237.0,91236.0,0.00016444]
[1764491026623,0.04499,91237.0,91236.0,0.00116444]
[1764491026828,0.02201,91237.0,91236.0,0.04699444]
[1764491027228,0.04499,91237.0,91236.0,0.04699444]
[1764491029235,0.04499,91245.0,91240.0,0.02382999]
[1764491029433,0.04499,91245.0,91244.0,0.04583]
[1764491030330,0.04599,91245.0,91244.0,0.04583]
[1764491030837,0.04699,91245.0,91244.0,0.04583]
[1764491031038,0.04599,91245.0,91244.0,0.04583]
[1764491031242,0.04699,91245.0,91244.0,0.04583]
[1764491032237,0.002,91245.0,91244.0,0.04583]
[1764491032536,0.002,91245.0,91244.0,0.44583]
[1764491032743,3.99e-06,91246.0,91245.0,0.0683478]
[1764491033339,3.99e-06,91246.0,91245.0,0.55548916]
[1764491033636,3.99e-06,91246.0,91245.0,0.4683478]
[1764491033940,9e-08,91246.0,91245.0,0.4683478]
[1764491034633,0.00376,91308.0,91245.0,0.4683478]
[1764491034634,0.01365,91344.0,91325.0,0.04583]
[1764491035032,0.01365,91352.0,91325.0,0.05735498]
[1764491035233,3.75e-06,91326.0,91325.0,0.45735498]
[1764491035432,0.04499,91360.0,91359.0,0.04583]
[1764491035632,0.04526363,91366.0,91365.0,0.02292]
[1764491035827,0.04526363,91366.0,91365.0,0.04583]
[1764491036437,0.02201,91371.0,91370.0,0.02292]
[1764491036743,0.02201,91361.0,91360.0,0.04583]
[1764491037039,0.29739569,91400.0,91399.0,0.04583]
[1764491037435,0.01365,91442.0,91414.0,0.04583]
[1764491038030,0.27383921,91414.0,91391.0,0.0109402]
[1764491038333,0.54696,91414.0,91413.0,0.04583]
[1764491039140,0.47696,91414.0,91413.0,0.04583]
[1764491039437,0.12156,91541.0,91417.0,0.0546861]
[1764491039632,0.01365,91462.0,91460.0,0.17017143]
[1764491039830,0.01365,91462.0,91461.0,0.0109319]
[1764491040034,0.01365,91462.0,91454.0,0.0109327]
[1764491040242,0.27407921,91461.0,91452.0,0.00016397]
[1764491040541,0.04499,91453.0,91452.0,0.01167626]
[1764491040738,0.02201,91441.0,91440.0,0.17017143]
[1764491040940,0.26314451,91452.0,91429.0,0.0109357]
[1764491041132,0.01365,91462.0,91415.0,0.00192]
[1764491041133,0.26314451,91461.0,91450.0,0.00999999]
[1764491041338,0.04499,91451.0,91440.0,0.17017143]
[1764491041738,0.01365,91440.0,91438.0,0.0109346]
[1764491042039,0.01365,91440.0,91436.0,0.00016406]
[1764491042040,0.04499,91437.0,91436.0,0.00016406]
[1764491042246,0.04499,91424.0,91370.0,0.00999999]
[1764491042431,0.04499,91420.0,91416.0,0.0109373]
[1764491042744,0.04499,91420.0,91409.0,0.0109381]
[1764491042943,0.22994673,91419.0,91417.0,0.0109371]
[1764491043146,0.22994673,91424.0,91417.0,0.0109371]
[1764491043830,0.01389,91425.0,91423.0,0.0109364]
[1764491044144,0.22994673,91424.0,91423.0,0.0109364]
[1764491044329,0.01389,91425.0,91423.0,0.0109364]
[1764491044734,0.01389,91425.0,91417.0,0.0119372]
[1764491044934,0.01389,91425.0,91417.0,0.001]
[1764491045136,0.22994673,91424.0,91423.0,0.005]
[1764491045441,0.22994673,91424.0,91423.0,0.0159364]
[1764491045646,0.22994673,91424.0,91423.0,0.006]
[1764491045938,0.22994673,91424.0,91423.0,0.007]
[1764491046139,0.22994673,91424.0,91423.0,0.001]
[1764491046340,0.27493673,91424.0,91423.0,0.004]
[1764491046544,0.27493673,91424.0,91423.0,0.003]
[1764491046749,0.27493673,91424.0,91423.0,0.004]
[1764491047941,0.27493673,91424.0,91423.0,0.006]
[1764491048142,0.22994673,91424.0,91423.0,0.006]
[1764491048333,0.22994673,91424.0,91423.0,0.003]
[1764491048735,0.27493673,91424.0,91423.0,0.003]
[1764491049043,0.27493673,91424.0,91423.0,0.002]
[1764491050539,0.27493673,91424.0,91418.0,0.010937]
[1764491050844,0.27493673,91424.0,91423.0,0.004]
[1764491051042,0.04499,91415.0,91414.0,0.16017144]
[1764491051246,0.04499,91412.0,91411.0,0.01110186]
[1764491051446,0.04499,91412.0,91411.0,0.00016406]
[1764491052541,0.04499,91404.0,91403.0,0.0109388]
[1764491053144,0.04499,91404.0,91403.0,0.0430488]
[1764491053450,0.03417,91403.0,91395.0,0.0109398]
[1764491053636,0.03417,91403.0,91390.0,0.01110446]
[1764491053637,0.11607,91391.0,91390.0,0.01110446]
[1764491054042,0.11607,91391.0,91390.0,0.04321446]
[1764491054238,0.03417,91403.0,91401.0,0.0109391]
[1764491054549,0.15024,91403.0,91402.0,0.06422]
[1764491055451,0.11607,91402.0,91401.0,0.0119391]
[1764491055644,0.34601673,91402.0,91401.0,0.0119391]
[1764491055844,0.34601673,91402.0,91401.0,0.0109391]
[1764491056342,0.00016406,91408.0,91407.0,0.0751584]
[1764491057951,0.00116406,91408.0,91407.0,0.0751584]
[1764491058652,0.34618079,91408.0,91407.0,0.0129384]
[1764491059044,0.34618079,91408.0,91407.0,0.0119384]
[1764491059244,0.34618079,91408.0,91407.0,0.0139384]
[1764491059948,0.34618079,91408.0,91407.0,0.003]
[1764491060550,0.34618079,91408.0,91407.0,0.001]
[1764491060849,0.00016406,91408.0,91407.0,0.1671915]
[1764491061053,0.00016406,91408.0,91407.0,0.06722]
[1764491062045,0.34618079,91408.0,91407.0,0.06722]
[1764491062245,0.34618079,91408.0,91407.0,0.03511]
[1764491063158,0.34618079,91408.0,91407.0,0.003]
[1764491064446,0.34642079,91408.0,91407.0,0.003]
[1764491064647,0.11144,91399.0,91398.0,0.17111084]
[1764491064851,0.11144,91399.0,91398.0,0.0109394]
[1764491065655,0.34138673,91399.0,91398.0,0.0119394]
[1764491066754,0.34138673,91399.0,91398.0,0.0159394]
[1764491067060,0.34138673,91399.0,91398.0,0.0149394]
[1764491067254,0.34138673,91399.0,91398.0,0.0119394]
[1764491067861,0.34138673,91399.0,91398.0,0.0109394]
[1764491070759,0.34162673,91399.0,91398.0,0.07778281]
[1764491071354,0.11144,91391.0,91390.0,0.09841761]
[1764491071556,0.11144,91391.0,91390.0,0.00016406]
[1764491071956,0.34138673,91391.0,91390.0,0.00016406]
[1764491072157,0.34162673,91391.0,91390.0,0.00016406]
[1764491072968,0.34162673,91391.0,91390.0,0.00116406]
[1764491073359,0.0327,91388.0,91380.0,0.25748835]
[1764491073555,0.11144,91385.0,91384.0,0.0109411]
[1764491073755,0.11144,91385.0,91384.0,0.02238514]
[1764491073971,0.11168,91385.0,91384.0,0.02238514]
[1764491074573,0.11168,91385.0,91384.0,0.01144404]
[1764491074762,0.11144,91381.0,91380.0,0.17611304]
[1764491074962,0.11168,91381.0,91380.0,0.01669018]
[1764491075666,0.11168,91381.0,91380.0,1.8e-07]
[1764491075865,0.11144,91378.0,91375.0,0.00016406]
[1764491076063,0.11168,91378.0,91375.0,0.00016406]
[1764491076266,0.11144,91371.0,91370.0,0.16017144]
[1764491076467,0.11144,91362.0,91361.0,0.16017144]
[1764491076667,0.11144,91361.0,91360.0,0.0109439]
[1764491076866,0.00024,91365.0,91356.0,0.0109445]
[1764491077067,0.11144,91357.0,91356.0,0.0109445]
[1764491077271,0.11155579,91357.0,91352.0,0.17111634]
[1764491077464,0.11144,91353.0,91352.0,0.1827242]
[1764491077770,0.11144,91353.0,91352.0,0.01160786]
[1764491077970,0.11144,91346.0,91345.0,0.00016415]
[1764491078367,0.11168,91346.0,91345.0,0.00016415]
[1764491079172,0.11168,91346.0,91345.0,0.0121179]
[1764491079364,0.11168,91346.0,91345.0,0.0131179]
[1764491079565,0.00024,91346.0,91345.0,0.2222094]
[1764491079767,0.00024,91346.0,91345.0,0.1222379]
[1764491080274,0.00024,91346.0,91345.0,0.1232379]
[1764491080770,0.00011579,91357.0,91345.0,0.1232379]
[1764491080771,0.00011579,91357.0,91356.0,0.1200645]
[1764491081373,0.11155579,91357.0,91356.0,0.0681045]
[1764491081574,0.11155579,91357.0,91356.0,0.0109445]
[1764491081977,0.11355579,91357.0,91356.0,0.0109445]
[1764491082380,0.11355579,91357.0,91356.0,0.1200645]
[1764491082972,0.11355579,91357.0,91356.0,0.0109445]
[1764491083278,0.11355579,91357.0,91347.0,0.16017144]
[1764491083279,0.1214,91348.0,91347.0,0.16017144]
[1764491083480,0.1214,91347.0,91346.0,0.0109456]
[1764491085381,0.1214,91347.0,91346.0,0.0119456]
[1764491085774,0.1224,91347.0,91346.0,0.0119456]
[1764491087279,0.1224,91347.0,91346.0,0.6288671]
[1764491087280,0.001,91347.0,91346.0,0.6288671]
[1764491087483,0.001,91347.0,91346.0,0.5288956]
[1764491091891,0.1224,91347.0,91346.0,0.0119456]
[1764491092088,0.09244,91355.0,91354.0,0.1378947]
[1764491092397,0.05974,91355.0,91354.0,0.1378947]
[1764491092685,0.1214,91355.0,91346.0,0.001]
[1764491092880,0.1214,91347.0,91346.0,0.0119457]
[1764491094391,0.1214,91347.0,91346.0,0.0109457]
[1764491094783,0.1224,91347.0,91346.0,0.0109457]
[1764491095180,0.1224,91347.0,91345.0,0.0121179]
[1764491095487,0.1214,91346.0,91345.0,0.0121179]
[1764491096382,0.1214,91346.0,91345.0,0.0131179]
[1764491098179,0.1214,91346.0,91345.0,0.0121179]
[1764491098380,0.1214,91346.0,91345.0,0.0131179]
[1764491099500,0.1214,91346.0,91345.0,0.3331179]
[1764491099796,0.1214,91346.0,91345.0,0.0131179]
[1764491101296,0.1214,91346.0,91345.0,0.5100679]
[1764491101493,0.1214,91346.0,91345.0,0.4465179]
[1764491101691,0.1214,91319.0,91314.0,9.706e-05]
[1764491101993,0.03504,91341.0,91314.0,9.706e-05]
[1764491101994,8.237e-05,91318.0,91317.0,0.12695]
[1764491102200,0.1214,91343.0,91330.0,0.03736]
[1764491102394,0.1214,91335.0,91334.0,0.074347]
[1764491102699,0.1214,91335.0,91334.0,0.527897]
[1764491103085,0.12144201,91335.0,91334.0,0.527897]
[1764491104499,0.12144201,91335.0,91334.0,0.247897]
[1764491104797,0.12444201,91335.0,91334.0,0.247897]
[1764491105199,0.12444201,91335.0,91334.0,0.547897]
[1764491107398,0.00304201,91335.0,91326.0,0.010948]
[1764491107603,0.1214,91327.0,91326.0,0.074348]
[1764491107899,0.1214,91326.0,91325.0,0.00011196]
[1764491109192,0.1214,91315.0,91314.0,0.01349096]
[1764491109392,0.12144201,91315.0,91314.0,0.01349096]
[1764491110404,0.1214,91295.0,91294.0,0.0109518]
[1764491110704,0.02717,91310.0,91280.0,0.13439308]
[1764491110705,0.05974,91281.0,91280.0,0.10076]
[1764491110898,0.06166,91276.0,91275.0,0.0109542]
[1764491111091,0.1214,91276.0,91275.0,0.0873902]
[1764491111400,0.1214,91284.0,91283.0,0.0634]
[1764491111606,0.1214,91280.0,91279.0,0.0743537]
[1764491111796,0.1214,91280.0,91279.0,0.0109537]
[1764491112196,0.1214,91280.0,91279.0,0.0743537]
[1764491112800,0.1214,91280.0,91279.0,0.1379037]
[1764491113008,0.1214,91280.0,91279.0,0.5679037]
[1764491113504,0.1214,91280.0,91279.0,0.3479037]
[1764491114006,0.1234,91280.0,91279.0,0.3479037]
[1764491117410,0.06174,91280.0,91279.0,0.3479037]
[1764491119018,0.002,91280.0,91279.0,0.3479037]
[1764491119716,0.12664,91280.0,91279.0,0.21]
[1764491120008,0.12464,91276.0,91275.0,0.013036]
[1764491120311,0.12464,91276.0,91275.0,0.1249]
[1764491121508,0.12564,91276.0,91275.0,0.1249]
[1764491122413,0.12564,91276.0,91275.0,0.13834935]
[1764491123211,0.12564,91276.0,91275.0,0.07556935]
[1764491123613,0.001,91276.0,91275.0,0.07556935]
[1764491123809,0.001,91276.0,91275.0,0.66656085]
[1764491124012,0.001,91276.0,91275.0,0.56658935]
[1764491124311,0.001,91276.0,91275.0,0.13658935]
[1764491124612,0.001,91276.0,91275.0,0.30658935]
[1764491126009,0.1228,91276.0,91275.0,0.13658935]
[1764491126411,0.1228,91276.0,91275.0,0.01344935]
[1764491126611,0.1228,91276.0,91274.0,0.0109542]
[1764491126612,0.001,91276.0,91263.0,0.0109555]
[1764491126815,0.1218,91267.0,91266.0,0.0109552]
[1764491127004,0.1218,91267.0,91266.0,0.1291252]
[1764491127407,0.1218,91267.0,91266.0,0.11817]
[1764491127916,0.1218,91267.0,91266.0,0.13115844]
[1764491128109,0.1218,91267.0,91266.0,0.01298844]
[1764491128304,0.1218,91266.0,91265.0,0.0109553]
[1764491128509,0.1218,91266.0,91265.0,0.0681053]
[1764491129408,0.1218,91266.0,91265.0,0.0691053]
[1764491129613,0.1218,91266.0,91265.0,0.0711053]
[1764491130106,0.1218,91266.0,91265.0,0.06015]
[1764491130307,0.1218,91266.0,91265.0,0.12117]
[1764491130617,0.1218,91266.0,91250.0,0.03679]
[1764491130618,0.1218,91248.0,91247.0,0.0681075]
[1764491130811,0.12193645,91248.0,91247.0,0.0681075]
[1764491131011,0.12193645,91248.0,91247.0,0.1291275]
[1764491131413,0.12193645,91248.0,91247.0,0.0681075]
[1764491131814,0.12193645,91248.0,91247.0,0.0691075]
[1764491132014,0.12193645,91248.0,91247.0,0.0751075]
[1764491132219,0.12193645,91248.0,91247.0,0.02043254]
[1764491133616,0.12193645,91248.0,91247.0,0.01443254]
[1764491134620,0.12193645,91248.0,91247.0,0.01343254]
[1764491134935,0.1218,91247.0,91246.0,0.00027399]
[1764491135814,0.1218,91247.0,91246.0,0.13142448]
[1764491136018,0.00013645,91248.0,91247.0,0.1291276]
[1764491136520,0.12193645,91248.0,91247.0,0.1291276]
[1764491138425,0.00013645,91248.0,91247.0,0.5591276]
[1764491139125,0.00016435,91257.0,91256.0,0.1291265]
[1764491139331,0.1218,91269.0,91268.0,0.129125]
[1764491140931,0.12196435,91278.0,91277.0,0.05715]
[1764491141127,0.12196435,91278.0,91277.0,0.11817]
[1764491142125,0.13096435,91278.0,91277.0,0.11817]
[1764491142930,0.00916435,91278.0,91277.0,0.11817]
[1764491148036,0.00916435,91278.0,91277.0,0.50817]
[1764491151731,0.008,91278.0,91277.0,0.50817]
[1764491151937,0.11056,91300.0,91299.0,0.1222613]
[1764491152330,0.11056,91305.0,91304.0,0.1538406]
[1764491152943,0.00016426,91314.0,91313.0,0.0109496]
[1764491153236,0.11072426,91314.0,91313.0,0.1222596]
[1764491154646,0.11056,91310.0,91309.0,0.0109501]
[1764491154943,0.11056,91310.0,91309.0,0.1222601]
[1764491155942,0.11056,91310.0,91309.0,0.003]
[1764491156246,0.46056,91310.0,91309.0,0.003]
[1764491156446,0.11056,91310.0,91309.0,0.11431]
[1764491159934,0.05584426,91314.0,91313.0,0.1222596]
[1764491160140,0.11072426,91314.0,91313.0,0.1222596]
[1764491160744,0.05584426,91314.0,91313.0,0.1222596]
[1764491160947,0.05584426,91314.0,91313.0,0.1242596]
[1764491161143,0.04391,91298.0,91287.0,0.03158]
[1764491161446,0.04391,91298.0,91269.0,0.16956839]
[1764491161447,0.01675,91296.0,91269.0,0.03158]
[1764491161644,0.08782,91280.0,91279.0,0.0683436]
[1764491161847,0.08782,91280.0,91279.0,0.0109536]
[1764491164057,0.08782,91271.0,91270.0,0.00016426]
[1764491164340,0.24782,91271.0,91270.0,0.00016426]
[1764491164536,0.51782,91271.0,91270.0,0.00016426]
[1764491164835,0.08782,91271.0,91270.0,0.00016426]
[1764491165037,0.21782,91271.0,91270.0,0.00016426]
[1764491165246,0.46782,91271.0,91270.0,0.00016426]
[1764491165848,0.46982,91271.0,91270.0,0.00016426]
[1764491171155,0.11982,91271.0,91270.0,0.00016426]
[1764491173356,0.36982,91271.0,91270.0,0.00016426]
[1764491173959,0.08982,91271.0,91270.0,0.11015426]
[1764491176350,0.08782,91271.0,91270.0,0.11015426]
[1764491176551,0.08782,91271.0,91270.0,0.11415426]
[1764491176959,0.08782,91271.0,91270.0,0.11015426]
[1764491178257,0.08982,91271.0,91270.0,0.11015426]
[1764491180658,0.08782,91271.0,91270.0,0.11015426]
[1764491180846,0.08982,91271.0,91270.0,0.11015426]
[1764491182361,0.08982,91271.0,91270.0,0.00016426]
[1764491182547,0.43982,91271.0,91270.0,0.00016426]
[1764491183362,0.0553,91252.0,91251.0,0.13107]
[1764491183967,0.0553,91252.0,91251.0,0.07936]
[1764491184564,0.01675,91264.0,91246.0,0.11274448]
[1764491184565,0.0553,91247.0,91246.0,0.11274448]
[1764491186766,0.0553,91247.0,91246.0,0.11374448]
[1764491186965,0.0553,91247.0,91246.0,0.11774448]
[1764491188068,0.05546436,91261.0,91260.0,0.09949]
[1764491188369,0.44546436,91261.0,91260.0,0.09949]
[1764491189867,0.0553,91257.0,91256.0,0.0789]
[1764491190164,0.4653,91257.0,91256.0,0.13061]
[1764491192471,0.00016436,91261.0,91260.0,0.09949]
[1764491192671,0.00016436,91261.0,91260.0,0.110446]
[1764491192874,0.02781436,91261.0,91260.0,0.110446]
[1764491193180,0.05546436,91261.0,91260.0,0.110446]
[1764491195180,0.02781436,91261.0,91260.0,0.110446]
[1764491195481,0.00016436,91261.0,91260.0,0.18846899]
[1764491195672,0.00016436,91261.0,91260.0,0.110446]
[1764491196481,0.00016436,91261.0,91260.0,0.500446]
[1764491197474,0.00016436,91261.0,91260.0,0.501446]
[1764491197672,0.02765,91272.0,91271.0,0.1104446]
[1764491198678,0.0553,91272.0,91271.0,0.1104446]
[1764491199281,0.05546436,91281.0,91280.0,0.13061]
[1764491199481,0.06546436,91281.0,91280.0,0.13061]
[1764491199684,0.06546436,91281.0,91280.0,0.12839]
[1764491200078,0.05546436,91281.0,91280.0,0.12839]
[1764491200382,0.36546436,91281.0,91280.0,0.12839]
[1764491200581,0.05746436,91281.0,91280.0,0.12839]
[1764491200773,0.00216436,91281.0,91280.0,0.12839]
[1764491201173,0.00216436,91281.0,91280.0,0.6083615]
[1764491201478,0.00216436,91281.0,91280.0,0.50839]
[1764491202386,0.04934,91293.0,91292.0,0.1104421]
[1764491202882,0.10008,91293.0,91292.0,0.1104421]
[1764491203475,0.10108,91293.0,91292.0,0.1104421]
[1764491203670,0.10508,91293.0,91292.0,0.1104421]
[1764491204076,0.05434,91293.0,91292.0,0.1104421]
[1764491205281,0.005,91293.0,91292.0,0.1104421]
[1764491206084,0.005,91293.0,91292.0,0.5104421]
[1764491206381,0.005,91293.0,91292.0,0.58851718]
[1764491206588,0.005,91293.0,91292.0,0.9104421]
[1764491206794,0.00016436,91302.0,91301.0,0.1105811]
[1764491206978,0.1603211,91340.0,91312.0,0.12796]
[1764491206979,0.04756,91313.0,91312.0,0.12796]
[1764491207289,0.17756,91313.0,91312.0,0.12796]
[1764491207478,0.04756,91313.0,91312.0,0.12796]
[1764491208792,0.10055,91313.0,91312.0,0.12796]
[1764491209880,0.10155,91313.0,91312.0,0.12796]
[1764491211184,0.008,91313.0,91312.0,0.4889098]
[1764491211384,0.00016427,91322.0,91321.0,0.1105787]
[1764491211586,0.09355,91333.0,91332.0,0.1105773]
[1764491211885,0.34355,91333.0,91332.0,0.05074]
[1764491212083,0.09355,91313.0,91312.0,0.1419098]
[1764491212286,0.09355,91313.0,91312.0,0.12796]
[1764491212486,0.09355,91307.0,91306.0,0.09963]
[1764491212675,0.45355,91307.0,91306.0,0.09963]
[1764491213090,0.09355,91304.0,91303.0,0.00016427]
[1764491213284,0.45355,91304.0,91303.0,0.00016427]
[1764491213690,0.45355,91304.0,91303.0,0.06185507]
[1764491214189,0.45355,91304.0,91303.0,0.05090427]
[1764491215086,0.45355,91304.0,91303.0,0.07085507]
[1764491215789,0.45355,91304.0,91303.0,0.11974507]
[1764491216605,0.45355,91304.0,91303.0,0.07085507]
[1764491216783,0.45355,91304.0,91303.0,0.05990427]
[1764491221585,0.45355,91304.0,91303.0,0.10879427]
[1764491222595,0.00016427,91322.0,91304.0,0.02833]
[1764491222893,0.09355,91314.0,91313.0,0.09963]
[1764491223082,0.51355,91314.0,91313.0,0.09963]
[1764491223990,0.09355,91314.0,91313.0,0.09963]
[1764491224889,0.09355,91314.0,91313.0,0.10563]
[1764491225089,0.00016427,91322.0,91321.0,0.0109487]
[1764491225397,0.00016427,91322.0,91321.0,0.1105787]
[1764491227399,0.00016427,91322.0,91321.0,0.4745787]
[1764491227897,0.00016427,91322.0,91321.0,0.5524942]
[1764491228200,0.00016427,91322.0,91321.0,0.4745787]
[1764491228392,0.00016427,91322.0,91321.0,0.55241052]
[1764491228990,0.04772427,91322.0,91321.0,0.2445787]
[1764491229189,0.09371427,91322.0,91321.0,0.4845787]
[1764491229998,0.09371427,91322.0,91321.0,0.1445787]
[1764491233492,0.46371427,91322.0,91321.0,0.05474]
[1764491233693,0.46371427,91322.0,91321.0,0.004]
[1764491234398,0.46371427,91322.0,91303.0,0.00016427]
[1764491234399,0.08725,91310.0,91309.0,0.0976101]
[1764491236902,0.04422427,91322.0,91321.0,0.08666]
[1764491237097,0.08741427,91322.0,91321.0,0.08666]
[1764491237306,0.11741427,91322.0,91321.0,0.08666]
[1764491237694,0.51741427,91322.0,91321.0,0.04443]
[1764491237893,0.51741427,91322.0,91321.0,0.04643]
[1764491238302,0.51741427,91322.0,91321.0,0.002]
[1764491239190,0.04406,91313.0,91312.0,0.07097]
[1764491239394,0.45725,91313.0,91312.0,0.1132]
[1764491240304,0.45725,91313.0,91312.0,0.08666]
[1764491240492,0.45725,91313.0,91312.0,0.09066]
[1764491242204,0.08725,91313.0,91312.0,0.1172]
[1764491246002,0.48725,91313.0,91303.0,0.00016427]
[1764491246201,0.08486,91305.0,91304.0,0.11756]
[1764491246406,0.51486,91305.0,91304.0,0.11756]
[1764491247302,0.08486,91305.0,91304.0,0.12256]
[1764491248211,0.08486,91305.0,91304.0,0.09423]
[1764491248597,0.47486,91305.0,91304.0,0.09423]
[1764491248799,0.47486,91305.0,91304.0,0.005]
[1764491250507,0.47486,91305.0,91303.0,0.00016427]
[1764491250709,0.08168,91289.0,91288.0,0.11364]
[1764491251012,0.08168,91281.0,91280.0,0.0423]
[1764491251209,0.08168,91274.0,91273.0,0.11303]
[1764491251399,0.08168,91274.0,91273.0,0.0871]
[1764491251799,0.08168,91274.0,91266.0,0.0368853]
[1764491251800,0.08168,91267.0,91266.0,0.11303]
[1764491252913,0.43168,91267.0,91266.0,0.0433]
[1764491253119,0.43168,91267.0,91266.0,0.001]
[1764491254916,0.08168,91267.0,91266.0,0.0881]
[1764491263317,0.00016427,91283.0,91267.0,0.0109551]
[1764491263524,0.45166427,91283.0,91282.0,0.0406]
[1764491263718,0.0419,91274.0,91273.0,0.02441]
[1764491263910,0.3315,91274.0,91273.0,0.10661]
[1764491265015,0.3335,91274.0,91273.0,0.10661]
[1764491268418,0.3335,91274.0,91273.0,0.0822]
[1764491268824,0.0439,91274.0,91273.0,0.10661]
[1764491269729,0.0835,91274.0,91273.0,0.10661]
[1764491272630,0.00016427,91283.0,91282.0,0.0822]
[1764491273831,0.04206427,91283.0,91282.0,0.0822]
[1764491274033,0.08166427,91283.0,91282.0,0.0822]
[1764491274527,0.08566427,91283.0,91282.0,0.0822]
[1764491274929,0.08266427,91283.0,91282.0,0.0822]
[1764491275324,0.08166427,91283.0,91282.0,0.0822]
[1764491275622,0.08266427,91283.0,91282.0,0.0822]
[1764491283637,0.04306427,91283.0,91282.0,0.0822]
[1764491283834,0.08266427,91283.0,91282.0,0.0822]
[1764491284941,0.08266427,91283.0,91273.0,0.10661]
[1764491284942,0.0815,91274.0,91273.0,0.10661]
[1764491285837,0.4415,91274.0,91273.0,0.0822]
[1764491286337,0.4415,91274.0,91273.0,0.0406]
[1764491286536,0.0815,91266.0,91265.0,0.0931554]
[1764491288134,0.0815,91266.0,91265.0,0.0971554]
[1764491288538,0.0815,91266.0,91265.0,0.0981554]
[1764491288841,0.0815,91266.0,91265.0,0.0951554]
[1764491289041,0.0815,91266.0,91265.0,0.0842]
[1764491289235,0.0815,91266.0,91265.0,0.0832]
[1764491289435,0.5015,91266.0,91265.0,0.0416]
[1764491289642,0.5015,91266.0,91265.0,0.0832]
[1764491293445,0.52152,91266.0,91265.0,0.001]
[1764491293651,0.44002,91266.0,91250.0,0.0109572]
[1764491293833,0.07181,91251.0,91250.0,0.0874272]
[1764491294742,0.07181,91251.0,91250.0,0.0924272]
[1764491294941,0.07181,91251.0,91250.0,0.0934272]
[1764491296142,0.07181,91251.0,91250.0,0.08247]
[1764491299850,0.07181,91251.0,91250.0,0.04415]
[1764491300148,0.07181,91251.0,91250.0,0.006]
[1764491300342,0.47181,91251.0,91250.0,0.006]
[1764491301341,0.47181,91251.0,91250.0,0.001]
[1764491301651,0.47181,91251.0,91250.0,0.003]
[1764491302742,0.07029,91247.0,91246.0,0.01491695]
[1764491303038,0.47029,91247.0,91246.0,0.01491695]
[1764491303849,0.47029,91247.0,91246.0,0.04916695]
[1764491304049,0.47029,91247.0,91246.0,0.05316695]
[1764491304750,0.47029,91247.0,91246.0,0.01891695]
[1764491306142,0.59740384,91247.0,91246.0,0.01891695]
[1764491306950,0.47029,91247.0,91246.0,0.09022695]
[1764491307353,0.47029,91247.0,91246.0,0.05316695]
[1764491307655,0.47029,91247.0,91246.0,0.01891695]
[1764491309446,0.47029,91247.0,91246.0,0.09022695]
[1764491315559,0.47029,91247.0,91246.0,0.01891695]
[1764491316862,0.07029,91247.0,91246.0,0.09022695]
[1764491317058,0.50029,91247.0,91246.0,0.09022695]
[1764491317258,0.50029,91247.0,91246.0,0.01891695]
[1764491317665,0.62029,91247.0,91246.0,0.01891695]
[1764491318865,0.07065,91237.0,91236.0,0.0933]
[1764491319166,0.45065,91237.0,91236.0,0.0933]
[1764491319556,0.45065,91237.0,91236.0,0.10818135]
[1764491319953,0.45065,91237.0,91236.0,0.10918135]
[1764491321161,0.45065,91237.0,91236.0,0.11318135]
[1764491321586,0.18065,91237.0,91236.0,0.11318135]
[1764491322274,0.07065,91237.0,91236.0,0.11318135]
[1764491322471,0.07065,91247.0,91246.0,0.07131]
[1764491322774,0.29065,91247.0,91246.0,0.07131]
[1764491324473,0.29065,91247.0,91246.0,0.07231]
[1764491325078,0.19053,91259.0,91258.0,0.03445]
[1764491325268,0.60053,91259.0,91258.0,0.06794]